fUSD/lending_fUSD_20250512
["ID","MTS","AMOUNT","RATE_DAILY","PERIOD"]
[360868315,1747089057036,-500.0,0.00013752,2]
[360868316,1747089057045,-500.0,0.00013752,2]
[360868317,1747089057055,-500.0,0.00013752,2]
[360868318,1747089057064,-500.0,0.00013752,2]
[360868319,1747089057074,-500.0,0.00013752,2]
[360868320,1747089057083,-500.0,0.00013752,2]
[360868321,1747089057093,-500.0,0.00013752,2]
[360868322,1747089057103,-500.0,0.00013752,2]
[360868323,1747089057112,-500.0,0.00013752,2]
[360868324,1747089057122,-500.0,0.00013752,2]
[360868325,1747089057133,-151.0,0.00013753,2]
[360868326,1747089057142,-291.6667281,0.00013753,2]
[360868327,1747089057151,-151.0,0.00013753,2]
[360868328,1747089057161,-151.0,0.00013753,2]
[360868329,1747089057170,-236.093941,0.00013753,2]
[360868330,1747089057179,-236.093941,0.00013753,2]
[360868331,1747089057188,-236.093941,0.00013753,2]
[360868332,1747089057197,-236.093941,0.00013753,2]
[360868333,1747089057207,-236.093941,0.00013753,2]
[360868334,1747089057217,-236.093941,0.00013753,2]
[360868335,1747089057227,-175.29702,0.00013753,2]
[360868336,1747089057236,-175.297013,0.00013753,2]
[360868337,1747089057245,-2272.483377,0.00013753,2]
[360868338,1747089057255,-4866.807933,0.00013753,2]
[360868339,1747089057265,-212.228154,0.00013753,2]
[360868340,1747089057274,-212.228144,0.00013753,2]
[360868341,1747089057284,-400.0,0.00013753,2]
[360868342,1747089057293,-400.0,0.00013753,2]
[360868343,1747089057303,-400.0,0.00013753,2]
[360868344,1747089057313,-400.0,0.00013753,2]
[360868345,1747089057322,-400.0,0.00013753,2]
[360868346,1747089057332,-241.03738042,0.00013753,2]
[360868347,1747089057341,-400.0,0.00013753,2]
[360868348,1747089057350,-400.0,0.00013753,2]
[360868349,1747089057360,-400.0,0.00013753,2]
[360868350,1747089057369,-400.0,0.00013753,2]
[360868351,1747089057378,-400.0,0.00013753,2]
[360868352,1747089057388,-400.0,0.00013753,2]
[360868353,1747089057397,-400.0,0.00013753,2]
[360868354,1747089057407,-400.0,0.00013753,2]
[360868355,1747089057416,-400.0,0.00013753,2]
[360868356,1747089057427,-400.0,0.00013753,2]
[360868357,1747089057436,-400.0,0.00013753,2]
[360868358,1747089057445,-400.0,0.00013753,2]
[360868359,1747089057454,-400.0,0.00013753,2]
[360868360,1747089057464,-400.0,0.00013753,2]
[360868361,1747089057473,-230.5585919,0.00013753,2]
[360868362,1747089057482,-400.0,0.00013753,2]
[360868363,1747089057492,-531.68525257,0.00013753,2]
[360868364,1747089057501,-400.0,0.00013753,2]
[360868365,1747089057510,-400.0,0.00013753,2]
[360868366,1747089057519,-274.25275757,0.00013753,2]
[360868367,1747089057533,-400.0,0.00013753,2]
[360868368,1747089057542,-400.0,0.00013753,2]
[360868369,1747089057552,-400.0,0.00013753,2]
[360868370,1747089057561,-400.0,0.00013753,2]
[360868371,1747089057571,-400.0,0.00013753,2]
[360868372,1747089057580,-400.0,0.00013753,2]
[360868373,1747089057589,-400.0,0.00013753,2]
[360868374,1747089057599,-400.0,0.00013753,2]
[360868375,1747089057608,-400.0,0.00013753,2]
[360868376,1747089057617,-400.0,0.00013753,2]
[360868377,1747089057627,-400.0,0.00013753,2]
[360868378,1747089057636,-400.0,0.00013753,2]
[360868379,1747089057645,-400.0,0.00013753,2]
[360868380,1747089057655,-400.0,0.00013753,2]
[360868381,1747089057666,-400.0,0.00013753,2]
[360868382,1747089057677,-400.0,0.00013753,2]
[360868383,1747089057686,-400.0,0.00013753,2]
[360868384,1747089057697,-400.0,0.00013753,2]
[360868385,1747089057708,-150.0,0.00013753,2]
[360868386,1747089057718,-400.0,0.00013753,2]
[360868387,1747089057727,-400.0,0.00013753,2]
[360868388,1747089057736,-400.0,0.00013753,2]
[360868389,1747089057747,-400.0,0.00013753,2]
[360868390,1747089057757,-400.0,0.00013753,2]
[360868391,1747089057767,-400.0,0.00013753,2]
[360868392,1747089057776,-400.0,0.00013753,2]
[360868393,1747089057786,-250.0,0.00013753,2]
[360868394,1747089057795,-400.0,0.00013753,2]
[360868395,1747089057804,-400.0,0.00013753,2]
[360868396,1747089057814,-400.0,0.00013753,2]
[360868397,1747089057823,-400.0,0.00013753,2]
[360868398,1747089057832,-400.0,0.00013753,2]
[360868399,1747089057841,-400.0,0.00013753,2]
[360868400,1747089057850,-400.0,0.00013753,2]
[360868401,1747089057860,-400.0,0.00013753,2]
[360868402,1747089057869,-400.0,0.00013753,2]
[360868403,1747089057878,-400.0,0.00013753,2]
[360868404,1747089057887,-400.0,0.00013753,2]
[360868405,1747089057897,-400.0,0.00013753,2]
[360868406,1747089057906,-400.0,0.00013753,2]
[360868407,1747089057916,-400.0,0.00013753,2]
[360868408,1747089057925,-400.0,0.00013753,2]
[360868409,1747089057934,-400.0,0.00013753,2]
[360868410,1747089057943,-400.0,0.00013753,2]
[360868411,1747089057953,-400.0,0.00013753,2]
[360868412,1747089057963,-400.0,0.00013753,2]
[360868413,1747089057972,-400.0,0.00013753,2]
[360868414,1747089057981,-400.0,0.00013753,2]
[360868415,1747089057991,-400.0,0.00013753,2]
[360868416,1747089058000,-280.24247147,0.00013753,2]
[360868417,1747089058010,-400.0,0.00013753,2]
[360868418,1747089058019,-400.0,0.00013753,2]
[360868419,1747089058029,-400.0,0.00013753,2]
[360868420,1747089058040,-400.0,0.00013753,2]
[360868421,1747089058050,-400.0,0.00013753,2]
[360868422,1747089058060,-400.0,0.00013753,2]
[360868423,1747089058069,-400.0,0.00013753,2]
[360868424,1747089058078,-400.0,0.00013753,2]
[360868425,1747089058088,-400.0,0.00013753,2]
[360868426,1747089058098,-400.0,0.00013753,2]
[360868427,1747089058107,-400.0,0.00013753,2]
[360868428,1747089058117,-400.0,0.00013753,2]
[360868429,1747089058126,-400.0,0.00013753,2]
[360868430,1747089058136,-400.0,0.00013753,2]
[360868431,1747089058145,-400.0,0.00013753,2]
[360868432,1747089058155,-400.0,0.00013753,2]
[360868433,1747089058164,-284.93803856,0.00013753,2]
[360868434,1747089058175,-400.0,0.00013753,2]
[360868435,1747089058184,-404.94584192,0.00013753,2]
[360868436,1747089058193,-400.0,0.00013753,2]
[360868437,1747089058203,-400.0,0.00013753,2]
[360868438,1747089058212,-400.0,0.00013753,2]
[360868439,1747089058221,-400.0,0.00013753,2]
[360868440,1747089058231,-420.68255936,0.00013753,2]
[360868441,1747089058241,-400.0,0.00013753,2]
[360868442,1747089058250,-400.0,0.00013753,2]
[360868443,1747089058260,-400.0,0.00013753,2]
[360868444,1747089058270,-400.0,0.00013753,2]
[360868445,1747089058281,-400.0,0.00013753,2]
[360868446,1747089058291,-400.0,0.00013753,2]
[360868447,1747089058301,-400.0,0.00013753,2]
[360868448,1747089058311,-400.0,0.00013753,2]
[360868449,1747089058321,-400.0,0.00013753,2]
[360868450,1747089058331,-416.50013277,0.00013753,2]
[360868451,1747089058340,-400.0,0.00013753,2]
[360868452,1747089058350,-419.19245018,0.00013753,2]
[360868453,1747089058360,-406.14296315,0.00013753,2]
[360868454,1747089058369,-400.0,0.00013753,2]
[360868455,1747089058383,-400.0,0.00013753,2]
[360868456,1747089058393,-430.59492441,0.00013753,2]
[360868457,1747089058402,-400.0,0.00013753,2]
[360868458,1747089058411,-400.0,0.00013753,2]
[360868459,1747089058421,-400.0,0.00013753,2]
[360868460,1747089058430,-400.0,0.00013753,2]
[360868461,1747089058439,-400.0,0.00013753,2]
[360868462,1747089058449,-425.38,0.00013753,2]
[360868463,1747089058459,-400.0,0.00013753,2]
[360868464,1747089058468,-400.0,0.00013753,2]
[360868465,1747089058478,-400.0,0.00013753,2]
[360868466,1747089058487,-450.0,0.00013753,2]
[360868467,1747089058496,-400.0,0.00013753,2]
[360868468,1747089058506,-434.32,0.00013753,2]
[360868469,1747089058515,-400.0,0.00013753,2]
[360868470,1747089058525,-202.43956013,0.00013753,2]
[360868471,1747089058534,-177.88,0.00013753,2]
[360868472,1747089058544,-400.0,0.00013753,2]
[360868473,1747089058554,-400.0,0.00013753,2]
[360868474,1747089058563,-400.0,0.00013753,2]
[360868475,1747089058573,-400.0,0.00013753,2]
[360868476,1747089058583,-583.52,0.00013753,2]
[360868477,1747089058592,-400.0,0.00013753,2]
[360868478,1747089058601,-400.0,0.00013753,2]
[360868479,1747089058611,-400.0,0.00013753,2]
[360868480,1747089058621,-400.0,0.00013753,2]
[360868481,1747089058631,-400.0,0.00013753,2]
[360868482,1747089058641,-400.0,0.00013753,2]
[360868483,1747089058651,-400.0,0.00013753,2]
[360868484,1747089058664,-707.73,0.00013753,2]
[360868485,1747089058673,-629.36,0.00013753,2]
[360868486,1747089058683,-331.98967034,0.00013753,2]
[360868487,1747089058692,-400.0,0.00013753,2]
[360868488,1747089058703,-400.0,0.00013753,2]
[360868489,1747089058712,-400.0,0.00013753,2]
[360868490,1747089058722,-400.0,0.00013753,2]
[360868491,1747089058732,-487.99854664,0.00013753,2]
[360868492,1747089058742,-400.0,0.00013753,2]
[360868493,1747089058751,-400.0,0.00013753,2]
[360868494,1747089058760,-671.55,0.00013753,2]
[360868495,1747089058770,-400.0,0.00013753,2]
[360868496,1747089058779,-400.0,0.00013753,2]
[360868497,1747089058789,-400.0,0.00013753,2]
[360868498,1747089058798,-400.0,0.00013753,2]
[360868499,1747089058807,-400.0,0.00013753,2]
[360868500,1747089058816,-439.66,0.00013753,2]
[360868501,1747089058826,-400.0,0.00013753,2]
[360868502,1747089058835,-400.0,0.00013753,2]
[360868503,1747089058844,-1398.27,0.00013753,2]
[360868504,1747089058853,-400.0,0.00013753,2]
[360868505,1747089058862,-400.0,0.00013753,2]
[360868506,1747089058872,-400.0,0.00013753,2]
[360868507,1747089058881,-400.0,0.00013753,2]
[360868508,1747089058890,-757.33,0.00013753,2]
[360868509,1747089058900,-400.0,0.00013753,2]
[360868510,1747089058910,-750.45,0.00013753,2]
[360868511,1747089058919,-400.0,0.00013753,2]
[360868512,1747089058929,-400.0,0.00013753,2]
[360868513,1747089058938,-400.0,0.00013753,2]
[360868514,1747089058948,-400.0,0.00013753,2]
[360868515,1747089058958,-1874.68,0.00013753,2]
[360868516,1747089058967,-454.04,0.00013753,2]
[360868517,1747089058977,-400.0,0.00013753,2]
[360868518,1747089058986,-400.0,0.00013753,2]
[360868519,1747089058996,-400.0,0.00013753,2]
[360868520,1747089059005,-400.0,0.00013753,2]
[360868521,1747089059015,-400.0,0.00013753,2]
[360868522,1747089059024,-400.0,0.00013753,2]
[360868523,1747089059034,-485.09,0.00013753,2]
[360868524,1747089059044,-400.0,0.00013753,2]
[360868525,1747089059054,-496.26,0.00013753,2]
[360868526,1747089059064,-400.0,0.00013753,2]
[360868527,1747089059073,-400.0,0.00013753,2]
[360868528,1747089059083,-400.0,0.00013753,2]
[360868529,1747089059093,-1115.31,0.00013753,2]
[360868530,1747089059103,-400.0,0.00013753,2]
[360868531,1747089059112,-400.0,0.00013753,2]
[360868532,1747089059121,-400.0,0.00013753,2]
[360868533,1747089059130,-400.0,0.00013753,2]
[360868534,1747089059140,-517.51,0.00013753,2]
[360868535,1747089059149,-400.0,0.00013753,2]
[360868536,1747089059158,-888.85,0.00013753,2]
[360868537,1747089059167,-1036.63,0.00013753,2]
[360868538,1747089059176,-400.0,0.00013753,2]
[360868539,1747089059185,-400.0,0.00013753,2]
[360868540,1747089059195,-400.0,0.00013753,2]
[360868541,1747089059205,-400.0,0.00013753,2]
[360868542,1747089059214,-491.42,0.00013753,2]
[360868543,1747089059223,-400.0,0.00013753,2]
[360868544,1747089059233,-400.0,0.00013753,2]
[360868545,1747089059242,-400.0,0.00013753,2]
[360868546,1747089059252,-400.0,0.00013753,2]
[360868547,1747089059261,-400.0,0.00013753,2]
[360868548,1747089059270,-400.0,0.00013753,2]
[360868549,1747089059279,-400.0,0.00013753,2]
[360868550,1747089059288,-400.0,0.00013753,2]
[360868551,1747089059297,-920.45,0.00013753,2]
[360868552,1747089059307,-400.0,0.00013753,2]
[360868553,1747089059316,-400.0,0.00013753,2]
[360868554,1747089059325,-400.0,0.00013753,2]
[360868555,1747089059334,-400.0,0.00013753,2]
[360868556,1747089059343,-400.0,0.00013753,2]
[360868557,1747089059353,-400.0,0.00013753,2]
[360868558,1747089059496,-400.0,0.00013753,2]
[360868559,1747089059507,-400.0,0.00013753,2]
[360868560,1747089059516,-400.0,0.00013753,2]
[360868561,1747089059525,-542.82,0.00013753,2]
[360868562,1747089059535,-400.0,0.00013753,2]
[360868563,1747089059544,-400.0,0.00013753,2]
[360868564,1747089059553,-400.0,0.00013753,2]
[360868565,1747089059562,-400.0,0.00013753,2]
[360868566,1747089059571,-505.88,0.00013753,2]
[360868567,1747089059581,-400.0,0.00013753,2]
[360868568,1747089059590,-400.0,0.00013753,2]
[360868569,1747089059599,-400.0,0.00013753,2]
[360868570,1747089059608,-400.0,0.00013753,2]
[360868571,1747089059618,-400.0,0.00013753,2]
[360868572,1747089059627,-400.0,0.00013753,2]
[360868573,1747089059636,-400.0,0.00013753,2]
[360868574,1747089059646,-1209.76,0.00013753,2]
[360868575,1747089059659,-400.0,0.00013753,2]
[360868576,1747089059669,-400.0,0.00013753,2]
[360868577,1747089059679,-400.0,0.00013753,2]
[360868578,1747089059689,-400.0,0.00013753,2]
[360868579,1747089059699,-400.0,0.00013753,2]
[360868580,1747089059709,-400.0,0.00013753,2]
[360868581,1747089059718,-400.0,0.00013753,2]
[360868582,1747089059728,-400.0,0.00013753,2]
[360868583,1747089059739,-400.0,0.00013753,2]
[360868584,1747089059749,-400.0,0.00013753,2]
[360868585,1747089059758,-400.0,0.00013753,2]
[360868586,1747089059768,-400.0,0.00013753,2]
[360868587,1747089059777,-400.0,0.00013753,2]
[360868588,1747089059787,-400.0,0.00013753,2]
[360868589,1747089059797,-400.0,0.00013753,2]
[360868590,1747089059806,-400.0,0.00013753,2]
[360868591,1747089059816,-1181.65,0.00013753,2]
[360868592,1747089059825,-400.0,0.00013753,2]
[360868593,1747089059835,-400.0,0.00013753,2]
[360868594,1747089059845,-400.0,0.00013753,2]
[360868595,1747089059854,-400.0,0.00013753,2]
[360868596,1747089059864,-421.38,0.00013753,2]
[360868597,1747089059874,-400.0,0.00013753,2]
[360868598,1747089059884,-400.0,0.00013753,2]
[360868599,1747089059893,-400.0,0.00013753,2]
[360868600,1747089059903,-400.0,0.00013753,2]
[360868601,1747089059912,-400.0,0.00013753,2]
[360868602,1747089059921,-400.0,0.00013753,2]
[360868603,1747089059931,-349.08,0.00013753,2]
[360868604,1747089059940,-400.0,0.00013753,2]
[360868605,1747089059950,-400.0,0.00013753,2]
[360868606,1747089059960,-400.0,0.00013753,2]
[360868607,1747089059970,-400.0,0.00013753,2]
[360868608,1747089059979,-388.73574872,0.00013753,2]
[360868609,1747089059989,-150.0,0.00013753,2]
[360868610,1747089059999,-400.0,0.00013753,2]
[360868611,1747089060008,-163.91414173,0.00013753,2]
[360868612,1747089060017,-400.0,0.00013753,2]
[360868613,1747089060027,-963.99,0.00013753,2]
[360868614,1747089060036,-400.0,0.00013753,2]
[360868615,1747089060046,-400.0,0.00013753,2]
[360868616,1747089060056,-400.0,0.00013753,2]
[360868617,1747089060067,-400.0,0.00013753,2]
[360868618,1747089060078,-400.0,0.00013753,2]
[360868619,1747089060087,-400.0,0.00013753,2]
[360868620,1747089060096,-400.0,0.00013753,2]
[360868621,1747089060105,-400.0,0.00013753,2]
[360868622,1747089060115,-400.0,0.00013753,2]
[360868623,1747089060124,-400.0,0.00013753,2]
[360868624,1747089060134,-400.0,0.00013753,2]
[360868625,1747089060143,-400.0,0.00013753,2]
[360868626,1747089060152,-400.0,0.00013753,2]
[360868627,1747089060162,-400.0,0.00013753,2]
[360868628,1747089060171,-400.0,0.00013753,2]
[360868629,1747089060181,-400.0,0.00013753,2]
[360868630,1747089060190,-342.5061905,0.00013753,2]
[360868631,1747089060200,-400.0,0.00013753,2]
[360868632,1747089060210,-400.0,0.00013753,2]
[360868633,1747089060219,-400.0,0.00013753,2]
[360868634,1747089060230,-1355.36,0.00013753,2]
[360868635,1747089060239,-1879.3,0.00013753,2]
[360868636,1747089060249,-400.0,0.00013753,2]
[360868637,1747089060259,-400.0,0.00013753,2]
[360868638,1747089060269,-400.0,0.00013753,2]
[360868639,1747089060279,-400.0,0.00013753,2]
[360868640,1747089060288,-400.0,0.00013753,2]
[360868641,1747089060298,-559.17,0.00013753,2]
[360868642,1747089060307,-400.0,0.00013753,2]
[360868643,1747089060317,-779.1,0.00013753,2]
[360868644,1747089060327,-849.78,0.00013753,2]
[360868645,1747089060337,-1694.68,0.00013753,2]
[360868646,1747089060347,-1947.15,0.00013753,2]
[360868647,1747089060356,-400.0,0.00013753,2]
[360868648,1747089060365,-404.85,0.00013753,2]
[360868649,1747089060374,-676.74,0.00013753,2]
[360868650,1747089060384,-150.39,0.00013753,2]
[360868651,1747089060394,-400.0,0.00013753,2]
[360868652,1747089060404,-1730.72,0.00013753,2]
[360868653,1747089060414,-400.0,0.00013753,2]
[360868654,1747089060425,-400.0,0.00013753,2]
[360868655,1747089060434,-400.0,0.00013753,2]
[360868656,1747089060446,-400.0,0.00013753,2]
[360868657,1747089060455,-400.0,0.00013753,2]
[360868658,1747089060467,-400.0,0.00013753,2]
[360868659,1747089060478,-400.0,0.00013753,2]
[360868660,1747089060488,-478.80463377,0.00013753,2]
[360868661,1747089060499,-1387.57,0.00013753,2]
[360868662,1747089060509,-1248.59,0.00013753,2]
[360868663,1747089060519,-518.1,0.00013753,2]
[360868664,1747089060528,-400.0,0.00013753,2]
[360868665,1747089060538,-400.0,0.00013753,2]
[360868666,1747089060548,-682.74,0.00013753,2]
[360868667,1747089060558,-400.0,0.00013753,2]
[360868668,1747089060568,-400.0,0.00013753,2]
[360868669,1747089060577,-242.37,0.00013753,2]
[360868670,1747089060587,-653.09,0.00013753,2]
[360868671,1747089060598,-440.53,0.00013753,2]
[360868672,1747089060607,-1773.64,0.00013753,2]
[360868673,1747089060617,-400.0,0.00013753,2]
[360868674,1747089060627,-259.39750801,0.00013753,2]
[360868675,1747089060636,-400.0,0.00013753,2]
[360868676,1747089060646,-400.0,0.00013753,2]
[360868677,1747089060656,-1281.03,0.00013753,2]
[360868678,1747089060668,-400.0,0.00013753,2]
[360868679,1747089060678,-538.76,0.00013753,2]
[360868680,1747089060687,-1065.45,0.00013753,2]
[360868681,1747089060699,-400.0,0.00013753,2]
[360868682,1747089060709,-400.0,0.00013753,2]
[360868683,1747089060719,-500.0,0.00013753,2]
[360868684,1747089060729,-589.49,0.00013753,2]
[360868685,1747089060738,-400.0,0.00013753,2]
[360868686,1747089060750,-400.0,0.00013753,2]
[360868687,1747089060760,-400.0,0.00013753,2]
[360868688,1747089060770,-400.0,0.00013753,2]
[360868689,1747089060781,-400.0,0.00013753,2]
[360868690,1747089060790,-400.0,0.00013753,2]
[360868691,1747089060800,-400.0,0.00013753,2]
[360868692,1747089060810,-578.05,0.00013753,2]
[360868693,1747089060820,-402.69,0.00013753,2]
[360868694,1747089060830,-400.0,0.00013753,2]
[360868695,1747089060839,-400.0,0.00013753,2]
[360868696,1747089060849,-603.75,0.00013753,2]
[360868697,1747089060859,-400.0,0.00013753,2]
[360868698,1747089060868,-400.0,0.00013753,2]
[360868699,1747089060878,-400.0,0.00013753,2]
[360868700,1747089060887,-400.0,0.00013753,2]
[360868701,1747089060897,-400.0,0.00013753,2]
[360868702,1747089060907,-327.13,0.00013753,2]
[360868703,1747089060916,-329.67,0.00013753,2]
[360868704,1747089060925,-500.0,0.00013753,2]
[360868705,1747089060934,-400.0,0.00013753,2]
[360868706,1747089060943,-400.0,0.00013753,2]
[360868707,1747089060952,-372.45,0.00013753,2]
[360868708,1747089060961,-423.09,0.00013753,2]
[360868709,1747089060970,-400.0,0.00013753,2]
[360868710,1747089060979,-599.39,0.00013753,2]
[360868711,1747089060989,-400.0,0.00013753,2]
[360868712,1747089060998,-1931.16,0.00013753,2]
[360868713,1747089061007,-524.99,0.00013753,2]
[360868714,1747089061016,-450.0,0.00013753,2]
[360868715,1747089061025,-400.0,0.00013753,2]
[360868716,1747089061034,-400.0,0.00013753,2]
[360868717,1747089061043,-400.0,0.00013753,2]
[360868718,1747089061053,-400.0,0.00013753,2]
[360868719,1747089061062,-400.0,0.00013753,2]
[360868720,1747089061072,-400.0,0.00013753,2]
[360868721,1747089061082,-400.0,0.00013753,2]
[360868722,1747089061091,-400.0,0.00013753,2]
[360868723,1747089061100,-474.31,0.00013753,2]
[360868724,1747089061110,-400.0,0.00013753,2]
[360868725,1747089061120,-400.0,0.00013753,2]
[360868726,1747089061129,-2668.79,0.00013753,2]
[360868727,1747089061138,-400.0,0.00013753,2]
[360868728,1747089061147,-665.11,0.00013753,2]
[360868729,1747089061157,-400.0,0.00013753,2]
[360868730,1747089061166,-400.0,0.00013753,2]
[360868731,1747089061175,-8.65572286,0.00013753,2]
[360868732,1747089061500,-450.56427714,0.00013753,2]
[360868733,1747089061509,-387.60990289,0.00013753,2]
[360868734,1747089061521,-12.39009711,0.00013753,2]
[360868735,1747089061531,-400.0,0.00013753,2]
[360868736,1747089061540,-3123.33,0.00013753,2]
[360868737,1747089061550,-494.54,0.00013753,2]
[360868738,1747089061559,-547.14,0.00013753,2]
[360868739,1747089061568,-400.0,0.00013753,2]
[360868740,1747089061578,-400.0,0.00013753,2]
[360868741,1747089061587,-1106.98444681,0.00013753,2]
[360868742,1747089061599,-601.39555319,0.00013753,2]
[360868743,1747089061608,-400.0,0.00013753,2]
[360868744,1747089061618,-400.0,0.00013753,2]
[360868745,1747089061627,-400.0,0.00013753,2]
[360868746,1747089061637,-761.25,0.00013753,2]
[360868747,1747089061801,-1033.47,0.00013753,2]
[360868748,1747089061812,-400.0,0.00013753,2]
[360868749,1747089061822,-400.0,0.00013753,2]
[360868750,1747089061832,-400.0,0.00013753,2]
[360868751,1747089061841,-400.0,0.00013753,2]
[360868752,1747089061852,-400.0,0.00013753,2]
[360868753,1747089061861,-507.45,0.00013753,2]
[360868754,1747089061870,-508.05,0.00013753,2]
[360868755,1747089061880,-292.20978476,0.00013753,2]
[360868756,1747089061890,-2134.48598921,0.00013753,2]
[360868757,1747089061901,-11719.36770365,0.00013753,2]
[360868758,1747089061913,-2722.32958891,0.00013753,2]
[360868759,1747089061925,-6818.22021088,0.00013753,2]
[360868760,1747089061937,-12782.2323179,0.00013753,2]
[360868761,1747089061949,-9658.21418945,0.00013753,2]
[360868762,1747089061959,-400.0,0.00013753,2]
[360868763,1747089061968,-400.0,0.00013753,2]
[360868764,1747089061977,-400.0,0.00013753,2]
[360868765,1747089061986,-833.0,0.00013753,2]
[360868766,1747089061996,-400.0,0.00013753,2]
[360868767,1747089062005,-400.0,0.00013753,2]
[360868768,1747089062014,-400.0,0.00013753,2]
[360868769,1747089062023,-400.0,0.00013753,2]
[360868770,1747089062033,-400.0,0.00013753,2]
[360868771,1747089062042,-1713.99,0.00013753,2]
[360868772,1747089062051,-400.0,0.00013753,2]
[360868773,1747089062061,-422.0,0.00013753,2]
[360868774,1747089062070,-400.0,0.00013753,2]
[360868775,1747089062079,-400.0,0.00013753,2]
[360868776,1747089062089,-400.0,0.00013753,2]
[360868777,1747089062098,-6913.38,0.00013753,2]
[360868778,1747089062107,-154.08722956,0.00013753,2]
[360868779,1747089062119,-245.91277044,0.00013753,2]
[360868780,1747089062128,-400.0,0.00013753,2]
[360868781,1747089062138,-400.0,0.00013753,2]
[360868782,1747089062148,-400.0,0.00013753,2]
[360868783,1747089062157,-3219.08743006,0.00013753,2]
[360868784,1747089062168,-2051.07280594,0.00013753,2]
[360868785,1747089062179,-2174.04318801,0.00013753,2]
[360868786,1747089062206,-312.75264615,0.00013753,2]
[360868790,1747089272719,361.81,0.00010882,2]
[360868791,1747089426978,500.0,0.00028,120]
[360868792,1747089639540,150.0,0.00013699,7]
[360868795,1747089857347,400.0,0.00028,120]
[360868891,1747090232453,-1000.0,0.00012725,2]
[360868892,1747090232462,-200.0,0.00012755,2]
[360868893,1747090232471,-477.25,0.00012785,2]
[360868894,1747090232481,-250.0,0.00012875,2]
[360868895,1747090232490,-200.0,0.000129,2]
[360868896,1747090232500,-361.81,0.00013146,2]
[360868897,1747090232698,-207.4,0.0001359,2]
[360868898,1747090232710,-1200.0,0.00013597,2]
[360868899,1747090232719,-4296.31827058,0.00013598,2]
[360868900,1747090232731,-879.2697946,0.00013598,2]
[360868901,1747090232746,-1140.00546,0.00013598,2]
[360868902,1747090232774,-253.53371294,0.00013598,2]
[360868903,1747090232785,-879.5318963,0.00013598,2]
[360868904,1747090232808,-5839.90468985,0.00013598,2]
[360868905,1747090232817,-163.9009405,0.00013598,2]
[360868906,1747090232826,-220.41747264,0.00013653,2]
[360868907,1747090232835,-170.64077926,0.00013653,2]
[360868908,1747090232844,-150.0,0.00013664,2]
[360868909,1747090232853,-8097.07975356,0.00013665,2]
[360868910,1747090232864,-1396.45,0.00013665,2]
[360868912,1747090232876,-2172.30939507,0.00013665,2]
[360868916,1747090232894,-1002.06975591,0.00013665,2]
[360868920,1747090232905,-620.65491967,0.00013665,2]
[360868923,1747090232914,-500.0,0.00013673,2]